Cogmind - Beta 10.2 @@@ ROGUE MODE // 2022.02.17 @ 08:48:31 Player: Eskild Result: Destroyed by G-34 Mercenary with Small Laser Performance ------------- Evolutions (1) 500 Regions Visited (2) 400 Robots Destroyed (13) 65 Value Destroyed (372) 372 Prototype IDs (1) 20 Alien Tech Used (0) 0 Bonus (0) 0 TOTAL SCORE: 1357 Bonus ------- None Cogmind --------- Core Integrity 0/400 Matter 292/500 Energy 167/280 System Corruption 0% Temperature Cool (6) Movement Walking (180) Ox2 Location -9/Materials Parts ------- > --- POWER (2) -------- Heavy Ion Engine > --- PROPULSION (2) --- Aluminum Leg Aluminum Leg > --- UTILITY (3) ------ High-capacity Storage Unit High-capacity Matter Pod Core Shielding > --- WEAPON (2) ------- (None) > --- INVENTORY (12) --- Light Ion Engine Compact Wheel Compact Wheel Large Storage Unit Peak State ------------ > --- POWER ------------ Ion Engine Light Nuclear Core > --- PROPULSION ------- Aluminum Leg Aluminum Leg > --- UTILITY ---------- Improved Heat Sink Large Storage Unit High-capacity Matter Pod > --- WEAPON ----------- EM Pulse Gun Beam Cannon > --- INVENTORY -------- Light Ion Engine Aluminum Leg Aluminum Leg Compact Wheel Compact Wheel Terrain Scanner Beam Cannon Light Assault Rifle [Rating: 13] Favorites ----------- Power Ion Engine Engine Ion Engine Power Core Light Nuclear Core Propulsion Aluminum Leg Leg Aluminum Leg Utility Large Storage Unit Device Improved Heat Sink Storage Large Storage Unit Protection Core Shielding Weapon EM Pulse Gun Energy Gun EM Pulse Gun Energy Cannon Beam Cannon Ballistic Gun Light Assault Rifle Build | -11 -10 -9 ------- Run | Scr Mat Mat Slots Evolved 2 | . . 2 Power 1 | . . 1 Propulsion . | . . . Utility 1 | . . 1 Weapon . | . . . Parts Attached 21 | 6 5 10 Power 4 | 1 1 2 Engine 3 | 1 1 1 Core 1 | . . 1 Reactor . | . . . Propulsion 5 | 2 1 2 Treads . | . . . Leg 5 | 2 1 2 Wheel . | . . . Hover . | . . . Flight . | . . . Utility 7 | 1 2 4 Device 2 | . 1 1 Storage 4 | 1 1 2 Processor . | . . . Hackware . | . . . Protection 1 | . . 1 Artifact . | . . . Weapon 5 | 2 1 2 Energy Gun 1 | 1 . . Energy Cannon 2 | . 1 1 Ballistic Gun 2 | 1 . 1 Ballistic Cannon . | . . . Launcher . | . . . Special Weapon . | . . . Impact Weapon . | . . . Slashing Weapon . | . . . Piercing Weapon . | . . . Special Melee Weapon . | . . . Unidentified Prototypes 1 | . . 1 Parts Lost 10 | . . 10 Power 2 | . . 2 Propulsion 2 | . . 2 Utility 2 | . . 2 Weapon 4 | . . 4 Highest Loss Streak 10 | . . 10 Average Slot Usage (%) 90 | . 98 59 Engine 12 | . 14 6 Core 1 | . . 6 Leg 23 | . 28 9 Device 2 | . 1 6 Storage 24 | . 25 22 Energy Gun 11 | . 14 3 Energy Cannon 5 | . 6 3 Ballistic Gun 6 | . 7 1 Naked Turns . | . . . Heaviest Build 45 | 12 30 45 Greatest Support 20 | 20 20 20 Greatest Overweight (x) 9 | . 1 9 Average Overweight (x) . | . . 3 Largest Inventory Capacity 12 | 6 12 12 Average Capacity 10 | 5 11 10 Most Carried 12 | 6 12 9 Average Carried 7 | 2 7 6 Final Capacity 12 | 6 10 12 Final Carried 10 | 4 10 4 Class Distribution -------------------- 91% | Mutant 8% | Scavenger-Mutant Dominant Class ---------------- Mutant | -10/Materials Mutant | -9/Materials Resources | -11 -10 -9 ----------- Run | Scr Mat Mat Matter Collected 380 | 240 80 60 Remotely . | . . . Salvage Created 493 | . 364 129 Parts 28 | . 21 7 Haulers Intercepted 1 | . 1 . Recyclers Shooed 1 | . 1 . Parts Field Recycled . | . . . Retrieved Matter . | . . . Parts Self-Destructed . | . . . Prevented . | . . . Kills | -11 -10 -9 ------- Run | Scr Mat Mat Combat Hostiles Destroyed 10 | . 6 4 Guns 7 | . 4 3 Cannons 2 | . 1 1 AOE 1 | . 1 . Classes Destroyed 6 | . 4 2 Hauler 1 | . 1 . Operator 1 | . 1 . Watcher 1 | . 1 . Swarmer 2 | . . 2 Grunt 7 | . 6 1 Duelist 1 | . . 1 Best Kill Streak 4 | . 3 4 Combat Bots Only 4 | . 2 4 Max Kills in Single Turn 1 | . 1 1 Gunslinging . | . . . Exploded 1 | . 1 . Melee . | . . . Uniques/NPCs Destroyed . | . . . Combat | -11 -10 -9 -------- Run | Scr Mat Mat Damage Taken 1500 | . 360 1140 Core 433 | . 32 401 Absorbed by Shields . | . . . Core Remaining (%) 93 | 100 87 . Volleys Fired 51 | . 33 18 Largest 2 | . 2 2 Hottest 100 | . 100 100 Shots Fired 86 | . 66 20 Gun 68 | . 53 15 Cannon 18 | . 13 5 Launcher . | . . . Special . | . . . Kinetic 28 | . 20 8 Thermal 18 | . 13 5 Explosive . | . . . Electromagnetic 40 | . 33 7 Robot Hit Streak 10 | . 10 8 Robot Miss Streak 5 | . 5 2 Penetration Max . | . . . Secondary Targets . | . . . Shots Hit Robots 54 | . 39 15 Core Hits 26 | . 17 9 Critical Hits 1 | . 1 . Critical Kills . | . . . Critical Parts Destroyed 1 | . 1 . Melee Attacks . | . . . Impact . | . . . Slashing . | . . . Piercing . | . . . Sneak Attacks . | . . . Combat Hostiles . | . . . Follow-up Attacks . | . . . Damage Inflicted 892 | . 723 169 Guns 591 | . 473 118 Cannons 175 | . 124 51 Explosions 126 | . 126 . Melee . | . . . Ramming . | . . . Kinetic 183 | . 117 66 Thermal 301 | . 250 51 Explosive . | . . . Electromagnetic 408 | . 356 52 Impact . | . . . Slashing . | . . . Piercing . | . . . Highest Corruption . | . . . Average Corruption . | . . . Corruption Purged . | . . . Overload Shots . | . . . Overflow Damage 32 | . 32 . Projectiles 16 | . 16 . Explosions 16 | . 16 . Melee . | . . . Knockbacks . | . . . Impact . | . . . Kinetic . | . . . Secondary . | . . . Self-Inflicted Damage . | . . . Shots . | . . . Rammed . | . . . Targets Rammed . | . . . Kicked . | . . . Crushed . | . . . Highest Temperature 373 | . 373 100 Average Temperature 83 | . 94 36 Received Heat Transfer 513 | . 198 315 Effects 2 | . 2 . Shutdowns 1 | . 1 . Energy Bleed 1 | . 1 . Siege Activations . | . . . Robots Corrupted . | . . . Combat Hostiles . | . . . Parts Fried 3 | . 3 . Impact Corruptions . | . . . Robots Melted . | . . . Combat Hostiles . | . . . Parts Melted . | . . . Heat Transferred 620 | . 509 111 Parts Sabotaged . | . . . Parts Stolen . | . . . Parts Stripped . | . . . Power Chain Reactions 3 | . 3 . Missiles Intercepted . | . . . Alert | -11 -10 -9 ------- Run | Scr Mat Mat Peak Influence 253 | . 253 165 Initial 106 | . . 106 Average 110 | . 124 135 Maximum Alert Level 1 | . 1 . Low Security (%) 84 | 100 76 100 Level 1 15 | . 23 . Level 2 . | . . . Level 3 . | . . . Level 4 . | . . . Level 5 . | . . . High Security . | . . . Max Security . | . . . Squads Dispatched 3 | . 2 1 Investigation 2 | . 1 1 Extermination . | . . . Reinforcement 1 | . 1 . Assault . | . . . Garrison . | . . . Intercept . | . . . Construction Impeded . | . . . Haulers Reinforced . | . . . Stealth | -11 -10 -9 --------- Run | Scr Mat Mat Distress Signals 2 | . 1 1 Communications Jammed . | . . . Distress Signals . | . . . Times Spotted 21 | . 10 11 Peak Tracking Total 7 | . 3 7 Tactical Retreats 1 | . . 1 Traps | -11 -10 -9 ------- Run | Scr Mat Mat Traps Triggered . | . . . Indirectly . | . . . Trap Hack Attempts . | . . . Triggered . | . . . Disarmed . | . . . Reprogrammed . | . . . Reused . | . . . Traps Extracted . | . . . Installed . | . . . Triggered . | . . . Machines | -11 -10 -9 ---------- Run | Scr Mat Mat Machines Disabled 2 | . 2 . Max in Single Turn 1 | . 1 . Machines Sabotaged . | . . . Garrisons Compromised . | . . . Overloaded Fab Kills . | . . . Fab Network Shutdowns . | . . . Hacking | -11 -10 -9 --------- Run | Scr Mat Mat Machines Accessed 3 | . 2 1 Terminals 3 | . 2 1 Fabricators . | . . . Repair Stations . | . . . Recycling Units . | . . . Scanalyzers . | . . . Garrison Access . | . . . Total Hacks 12 | . 9 3 Successful 8 | . 6 2 Failed 4 | . 3 1 Catastrophic 2 | . 1 1 Database Lockouts . | . . . Manual . | . . . Terminals 12 | . 9 3 Fabricators . | . . . Repair Stations . | . . . Recycling Units . | . . . Scanalyzers . | . . . Garrison Access . | . . . Terminal Hacks 8 | . 6 2 Record 3 | . 2 1 Locate Traps 3 | . 2 1 Dispatch Records 1 | . 1 . Zone Layout 1 | . 1 . Fabricator Hacks . | . . . Repair Station Hacks . | . . . Recycling Unit Hacks . | . . . Scanalyzer . | . . . Garrison Access Hacks . | . . . Unauthorized Hacks . | . . . Terminals . | . . . Fabricators . | . . . Repair Stations . | . . . Recycling Units . | . . . Scanalyzers . | . . . Garrison Access . | . . . Data Cores Recovered . | . . . Used . | . . . Hacking Detections 3 | . 2 1 Full Trace Events 2 | . 1 1 Feedback Events . | . . . Feedback Blocked . | . . . Robot Schematics Acquired . | . . . Robots Built . | . . . Matter . | . . . Time . | . . . Total Robot Build Rating . | . . . Part Schematics Acquired . | . . . Parts Built . | . . . Matter . | . . . Time . | . . . Total Part Build Rating . | . . . Parts Repaired . | . . . Time . | . . . Parts Recycled . | . . . Recycled Matter . | . . . Retrieved Matter . | . . . Retrieved Components . | . . . Parts Scanalyzed . | . . . Part Schematics Acquired . | . . . Parts Damaged . | . . . Bothacking | -11 -10 -9 ------------ Run | Scr Mat Mat Used RIF Installer . | . . . Robots Hacked . | . . . Non-combat . | . . . Combat . | . . . Robot Hacks Applied . | . . . Relay Couplers Released . | . . . Robots Rewired . | . . . Allies Hacked . | . . . Hacks Repelled . | . . . Allies | -11 -10 -9 -------- Run | Scr Mat Mat Total Allies . | . . . Largest Group . | . . . Highest-Rated Group . | . . . Highest-Rated Ally . | . . . Total Orders . | . . . Ally Attacks . | . . . Total Damage . | . . . Kills . | . . . Allies Corrupted . | . . . Allies Melted . | . . . Intel | -11 -10 -9 ------- Run | Scr Mat Mat Robot Analysis Total . | . . . Derelict Logs Recovered . | . . . Drone Launches . | . . . Drone Recoveries . | . . . Exploration | -11 -10 -9 ------------- Run | Scr Mat Mat Turns Passed 528 | 69 355 104 Spaces Moved 237 | 47 167 23 Core 11 | 3 . 8 Treads . | . . . Legs 226 | 44 167 15 Wheels . | . . . Hover . | . . . Flight . | . . . Fastest Speed 50 | 50 120 150 Average Speed 148 | 115 145 232 Slowest Speed 500 | 120 150 500 Overloaded Moves . | . . . Propulsion Burnouts . | . . . Robots Hopped . | . . . Cave-ins Triggered . | . . . Exploration Rate (%) 11 | 4 27 4 Regions Visited 2 Branch Regions . Pre-discovered Areas . | . . . Known Exits Taken . | . . . Unknown Exits Taken 2 | 1 1 . Scrap Searched . | . . . Spaces Dug . | . . . Terrain Destroyed 11 | . 11 . Melee . | . . . Projectile . | . . . AOE 11 | . 11 . Terrain Rammed . | . . . Walls Destroyed . | . . . Machines Disabled . | . . . Actions | -11 -10 -9 --------- Run | Scr Mat Mat Total 332 | 61 217 54 Wait . | . . . Move 235 | 46 166 23 Hop . | . . . Pick Up 22 | 9 10 3 Fast Attach 2 | 1 1 . Attach 15 | 5 1 9 Detach . | . . . Swap 4 | . 3 1 Drop 3 | . 3 . Fire 51 | . 33 18 Melee . | . . . Ram . | . . . Kick . | . . . Crush . | . . . Escape Stasis . | . . . Rewire . | . . . Trap . | . . . Miscellaneous . | . . . Route ------- -11/Scrapyard -10/Materials -9/Materials History --------- Turn | Location | Event 22 | -11/Scrapyard | Discovered new exit (range 14) 70 | -11/Scrapyard | Entered Materials 218 | -10/Materials | Discovered new exit (range 15) 308 | -10/Materials | Build established: Mutant 425 | -10/Materials | Entered another Materials area 425 | -9/Materials | Evolved 2 slots: Power x1, Utility x1 496 | -9/Materials | Core integrity fell below 50% 516 | -9/Materials | Core integrity fell below 20% 529 | -9/Materials | Destroyed by G-34 Mercenary with Small Laser Last Messages --------------- Imp. Heat Sink destroyed. R-06 Scavenger collects Flight Unit. L-31 Rogue destroyed. Acquired 60 matter. R-06 Scavenger collects Imp. Aluminum Leg. Aluminum Leg destroyed. Acquired Core Shielding. Ion Engine destroyed. Beam Cannon destroyed. G-34 Mercenary destroyed. K-01 Serf collects debris. Lgt. Nuclear Core destroyed. K-01 Serf collects debris. Lgt. Assault Rifle destroyed. K-01 Serf collects debris. G-34 Mercenary destroyed. Terrain Scanner destroyed. Acquired Prototype Engine. Identified Hvy. Ion Engine. Acquired Hcp. Storage Unit. Map ----- +----------------------------------------------------+ | | | | | | | | | | | | | ?????????????????????????????????????????????????? | | ?????????????????????????????????????????????????? | | ?????????????????????????????????????????????????? | | ?????????????????????????????????????????????????? | | ?????????????????????????????????????????????????? | | ?????????????????????????????????????????????????? | | ?????????????????????????????????????????????????? | | ?????????????????????????????????????????????????? | | ?????????????????????????????????????????????????? | | ?????????????????????????????????????????????????? | | ?????????????????????????????????????????????????? | | ?????????????????????????????????????????????????? | | ?????????????????????????????????????????????????? | | ?????????????????????????????????????????????????? | | ???????????????#####?????????????????????????????? | | ????????????#??# #########?????????????????????? | | ???????????????# ## #?????????????????????? | | ???????????????# ## !!#?????????????????????? | | ???????????????# ## #?????????????????????? | | ???????????????# ## @ #?????????????????????? | | ??????????????## ## #?????????????????????? | | ??????????????## ## gsg #?????????????????????? | | ????????####### % ###Y#########????????????????? | | ? "%" ???????????? | | ????????####### %T ???????????? | | ??????????????# % ???????????? | | ??????????????# %=[ ######### #####????????????? | | ??????????????# *###????????? #????????????????? | | ??????????????# #???????????? #????????????????? | | ??????????????# #??????????^^^?????????????????? | | ??????????????# #??????????^^^?????????????????? | | ??????????????# #??????????????????????????????? | | ??????????????# #??????????????????????????????? | | ??????????????# #??????????????????????????????? | | ??????????????# #??????????????????????????????? | | ??????????????# #?#????#???????????????????????? | | ?????????????? ???????????????????????????????? | | ?????????????? ???????????????????????????????? | | ??????????????? ???????????????????????????????? | | ?????????????????????????????????????????????????? | | ?????????????????????????????????????????????????? | | ?????????????????????????????????????????????????? | | ?????????????????????????????????????????????????? | | ?????????????????????????????????????????????????? | +----------------------------------------------------+ Best States ------------- Heat Dissipation 42 Energy Generation 19 Energy Capacity 310 Matter Stores 342 Matter Capacity 500 Sight Range 16 Terrain Scan Range 14 Terrain Scan Density 10 Evasion (%) 40 Item Schematics ----------------- None Robot Schematics ------------------ None Fabricated ------------ Nothing Alien Tech Used ----------------- None Achievements -------------- None Challenges ------------ None Game ------ Seed RestorationTeslaWand Manual? 0 Play Time 00:08:45 Cumulative 9.0 hours Start 2022.02.17 @ 08:05:37 End 2022.02.17 @ 08:48:31 Sessions 1 Manual Loads 0 Difficulty Rogue Special Mode None Game No. 28 Rogue 22 Adventurer 6 Explorer 0 Win Type - Total 0 Types 0/0/0/0/0/0/0/0/0 Lore% 10 Gallery% 15 Achievement% 12 Wizard Run 0 Options --------- ASCII 0 Keyboard 0 Movement Mouse Keybinds 0 Fullscreen 1 Font 18/SmallcapsGlow Map View 76x50 Tactical HUD 0 Map Filters NONE Filters NONE Steam 1 RUN: 5ed4517b-981e-4440-a446-5693cbc27eff